[Event "Titled Tuesday Blitz October 18 Late 2022"]
[White "Tomaszewski, Kacper"]
[Black "Rosenberg, Evan S"]
[WhiteFideId "1127373"]
[BlackFideId "2019299"]
[WhiteElo "2211"]
[BlackElo "2355"]
[Result "1-0"]
[Round "06"]
[TimeControl "180+1"]
[Date "2022.10.19"]
[WhiteClock "0:00:09"]
[BlackClock "0:00:06"]

1. Nf3 {[%clk 0:03:00]}  d5 {[%clk 0:02:56]} 2. c4 {[%clk 0:03:00]}  d4 {[%clk 0:02:56]} 3. g3 {[%clk 0:02:54]}  Nc6 {[%clk 0:02:55]} 4. Bg2 {[%clk 0:02:52]}  e5 {[%clk 0:02:55]} 5. d3 {[%clk 0:02:52]}  Bb4+ {[%clk 0:02:54]} 6. Nbd2 {[%clk 0:02:50]}  a5 {[%clk 0:02:48]} 7. O-O {[%clk 0:02:50]}  Nf6 {[%clk 0:02:44]} 8. a3 {[%clk 0:02:50]}  Bc5 {[%clk 0:02:34]} 9. Ne4 {[%clk 0:02:44]}  Nxe4 {[%clk 0:02:32]} 10. dxe4 {[%clk 0:02:44]}  Be6 {[%clk 0:02:30]} 11. Qc2 {[%clk 0:02:43]}  a4 {[%clk 0:02:24]} 12. Bd2 {[%clk 0:02:39]}  f6 {[%clk 0:02:19]} 13. Ne1 {[%clk 0:02:39]}  O-O {[%clk 0:02:14]} 14. Nd3 {[%clk 0:02:39]}  b6 {[%clk 0:02:11]} 15. f4 {[%clk 0:02:37]}  Qd7 {[%clk 0:02:00]} 16. f5 {[%clk 0:02:37]}  Bf7 {[%clk 0:02:00]} 17. g4 {[%clk 0:02:37]}  Kh8 {[%clk 0:01:59]} 18. h4 {[%clk 0:02:37]}  Rg8 {[%clk 0:01:58]} 19. g5 {[%clk 0:02:36]}  g6 {[%clk 0:01:52]} 20. gxf6 {[%clk 0:02:32]}  gxf5 {[%clk 0:01:51]} 21. Rxf5 {[%clk 0:02:24]}  Rg4 {[%clk 0:01:38]} 22. Bh6 {[%clk 0:02:14]}  Bf8 {[%clk 0:01:23]} 23. Bg5 {[%clk 0:01:58]}  h6 {[%clk 0:01:13]} 24. Nf2 {[%clk 0:01:58]}  Rg3 {[%clk 0:00:39]} 25. Kh2 {[%clk 0:01:49]}  Rb3 {[%clk 0:00:39]} 26. Rh1 {[%clk 0:01:42]}  hxg5 {[%clk 0:00:34]} 27. hxg5 {[%clk 0:01:43]}  Bg6 {[%clk 0:00:34]} 28. Rf3 {[%clk 0:01:36]}  Rxf3 {[%clk 0:00:29]} 29. Bxf3 {[%clk 0:01:37]}  Kg8 {[%clk 0:00:28]} 30. Bg4 {[%clk 0:01:37]}  Qf7 {[%clk 0:00:17]} 31. Kg1 {[%clk 0:01:30]}  Nd8 {[%clk 0:00:17]} 32. Nd3 {[%clk 0:01:23]}  Bd6 {[%clk 0:00:17]} 33. Bf3 {[%clk 0:01:18]}  Ne6 {[%clk 0:00:16]} 34. c5 {[%clk 0:01:15]}  bxc5 {[%clk 0:00:16]} 35. Nf2 {[%clk 0:00:54]}  Nxg5 {[%clk 0:00:16]} 36. Ng4 {[%clk 0:00:55]}  Kf8 {[%clk 0:00:13]} 37. Rh8+ {[%clk 0:00:53]}  Qg8 {[%clk 0:00:13]} 38. Rxg8+ {[%clk 0:00:52]}  Kxg8 {[%clk 0:00:14]} 39. Qc4+ {[%clk 0:00:50]}  Bf7 {[%clk 0:00:14]} 40. Nh6+ {[%clk 0:00:49]}  Kf8 {[%clk 0:00:13]} 41. Nxf7 {[%clk 0:00:50]}  Nxf7 {[%clk 0:00:14]} 42. Bh5 {[%clk 0:00:47]}  Ng5 {[%clk 0:00:13]} 43. Qd5 {[%clk 0:00:43]}  Rb8 {[%clk 0:00:12]} 44. Qc6 {[%clk 0:00:39]}  Rd8 {[%clk 0:00:11]} 45. Kg2 {[%clk 0:00:32]}  Ne6 {[%clk 0:00:09]} 46. Kf2 {[%clk 0:00:23]}  Nf4 {[%clk 0:00:10]} 47. Bg4 {[%clk 0:00:21]}  Ng6 {[%clk 0:00:08]} 48. Bf5 {[%clk 0:00:20]}  Nf4 {[%clk 0:00:08]} 49. Qxa4 {[%clk 0:00:19]}  Nh5 {[%clk 0:00:07]} 50. Qb3 {[%clk 0:00:14]}  Nxf6 {[%clk 0:00:06]} 51. Qh3 {[%clk 0:00:09]}  Kg7 {[%clk 0:00:06]} 52. Qg3+ {[%clk 0:00:09]}  Kf8 {[%clk 0:00:06]} 53. Qg6 {[%clk 0:00:09]}  Ke7 {[%clk 0:00:05]} 54. Qg7+ {[%clk 0:00:09]}  Ke8 {[%clk 0:00:06]} 55. Bg6# {[%clk 0:00:09]} 1-0


[Site "https://www.chess.com"]

[Event "Titled Tuesday Blitz October 18 Late 2022"]
[White "Tsaruk, Maksim"]
[Black "Zierk, Steven"]
[WhiteFideId "13511173"]
[BlackFideId "2034255"]
[WhiteElo "2273"]
[BlackElo "2494"]
[Result "1/2-1/2"]
[Round "06"]
[TimeControl "180+1"]
[Date "2022.10.18"]
[WhiteClock "0:00:05"]
[BlackClock "0:00:23"]

1. e4 {[%clk 0:01:40]}  c6 {[%clk 0:02:59]} 2. d4 {[%clk 0:01:40]}  d5 {[%clk 0:02:59]} 3. Nc3 {[%clk 0:01:40]}  dxe4 {[%clk 0:02:58]} 4. Nxe4 {[%clk 0:01:41]}  Bf5 {[%clk 0:02:59]} 5. Ng3 {[%clk 0:01:41]}  Bg6 {[%clk 0:02:59]} 6. h4 {[%clk 0:01:42]}  h6 {[%clk 0:02:59]} 7. h5 {[%clk 0:01:43]}  Bh7 {[%clk 0:02:59]} 8. Nf3 {[%clk 0:01:44]}  Nd7 {[%clk 0:02:58]} 9. Bd3 {[%clk 0:01:44]}  Bxd3 {[%clk 0:02:58]} 10. Qxd3 {[%clk 0:01:45]}  Ngf6 {[%clk 0:02:58]} 11. Bd2 {[%clk 0:01:46]}  e6 {[%clk 0:02:58]} 12. O-O-O {[%clk 0:01:47]}  Bd6 {[%clk 0:02:57]} 13. Kb1 {[%clk 0:01:47]}  Qc7 {[%clk 0:02:57]} 14. Ne4 {[%clk 0:01:46]}  Nxe4 {[%clk 0:02:56]} 15. Qxe4 {[%clk 0:01:47]}  Nf6 {[%clk 0:02:56]} 16. Qe2 {[%clk 0:01:47]}  O-O-O {[%clk 0:02:55]} 17. c4 {[%clk 0:01:47]}  c5 {[%clk 0:02:51]} 18. Bc3 {[%clk 0:01:48]}  cxd4 {[%clk 0:02:50]} 19. Nxd4 {[%clk 0:01:49]}  a6 {[%clk 0:02:46]} 20. Nb3 {[%clk 0:01:50]}  Qc6 {[%clk 0:02:31]} 21. f3 {[%clk 0:01:50]}  Bc7 {[%clk 0:02:30]} 22. g4 {[%clk 0:01:51]}  Rxd1+ {[%clk 0:02:19]} 23. Rxd1 {[%clk 0:01:51]}  Rd8 {[%clk 0:02:19]} 24. Nd4 {[%clk 0:01:47]}  Qc5 {[%clk 0:02:15]} 25. b4 {[%clk 0:01:43]}  Qd6 {[%clk 0:02:11]} 26. Rd2 {[%clk 0:01:42]}  Qg3 {[%clk 0:02:08]} 27. Nb3 {[%clk 0:01:22]}  Rxd2 {[%clk 0:01:57]} 28. Nxd2 {[%clk 0:01:21]}  Bf4 {[%clk 0:01:55]} 29. Ne4 {[%clk 0:01:17]}  Qg1+ {[%clk 0:01:52]} 30. Kc2 {[%clk 0:01:08]}  Qc1+ {[%clk 0:01:48]} 31. Kb3 {[%clk 0:01:09]}  Qb1+ {[%clk 0:01:47]} 32. Bb2 {[%clk 0:00:31]}  Nxe4 {[%clk 0:01:39]} 33. Qxe4 {[%clk 0:00:29]}  Qd1+ {[%clk 0:01:39]} 34. Ka3 {[%clk 0:00:28]}  Bc1 {[%clk 0:01:23]} 35. Bxc1 {[%clk 0:00:28]}  Qxc1+ {[%clk 0:01:23]} 36. Kb3 {[%clk 0:00:29]}  Qd2 {[%clk 0:01:21]} 37. Qc2 {[%clk 0:00:21]}  Qf4 {[%clk 0:01:15]} 38. Qc3 {[%clk 0:00:21]}  e5 {[%clk 0:01:08]} 39. Qd3 {[%clk 0:00:20]}  Kc7 {[%clk 0:01:01]} 40. c5 {[%clk 0:00:21]}  g6 {[%clk 0:00:54]} 41. hxg6 {[%clk 0:00:09]}  fxg6 {[%clk 0:00:55]} 42. Qd6+ {[%clk 0:00:06]}  Kc8 {[%clk 0:00:55]} 43. Ka4 {[%clk 0:00:04]}  Qxf3 {[%clk 0:00:50]} 44. Qxg6 {[%clk 0:00:04]}  Qe3 {[%clk 0:00:37]} 45. Qe6+ {[%clk 0:00:03]}  Kb8 {[%clk 0:00:36]} 46. Qd6+ {[%clk 0:00:03]}  Kc8 {[%clk 0:00:35]} 47. Qe6+ {[%clk 0:00:03]}  Kd8 {[%clk 0:00:28]} 48. Qd6+ {[%clk 0:00:04]}  Kc8 {[%clk 0:00:26]} 49. Qf8+ {[%clk 0:00:05]}  Kd7 {[%clk 0:00:24]} 50. Qd6+ {[%clk 0:00:05]}  Kc8 {[%clk 0:00:23]} 1/2-1/2


[Site "https://www.chess.com"]

[Event "Titled Tuesday Blitz October 18 Late 2022"]
[White "Wiebe, Isaac"]
[Black "Hirneise, Jens"]
[WhiteFideId "2623862"]
[BlackFideId "24614734"]
[WhiteElo "2251"]
[BlackElo "2344"]
[Result "0-1"]
[Round "06"]
[TimeControl "180+1"]
[Date "2022.10.19"]
[WhiteClock "0:00:02"]
[BlackClock "0:00:04"]

1. d4 {[%clk 0:03:00]}  Nf6 {[%clk 0:02:58]} 2. c4 {[%clk 0:03:01]}  e6 {[%clk 0:02:56]} 3. Nc3 {[%clk 0:03:00]}  d5 {[%clk 0:02:57]} 4. Bg5 {[%clk 0:03:00]}  Be7 {[%clk 0:02:57]} 5. e3 {[%clk 0:02:59]}  O-O {[%clk 0:02:52]} 6. Rc1 {[%clk 0:02:59]}  a6 {[%clk 0:02:48]} 7. cxd5 {[%clk 0:02:55]}  exd5 {[%clk 0:02:48]} 8. Nf3 {[%clk 0:02:51]}  Be6 {[%clk 0:02:47]} 9. Bd3 {[%clk 0:02:50]}  Nbd7 {[%clk 0:02:42]} 10. O-O {[%clk 0:02:49]}  Re8 {[%clk 0:02:41]} 11. Qc2 {[%clk 0:02:16]}  Rc8 {[%clk 0:02:38]} 12. Rfd1 {[%clk 0:02:13]}  Nf8 {[%clk 0:02:35]} 13. Bf5 {[%clk 0:02:12]}  Qd7 {[%clk 0:02:24]} 14. Bxe6 {[%clk 0:02:11]}  Nxe6 {[%clk 0:02:22]} 15. Bh4 {[%clk 0:02:11]}  Qd8 {[%clk 0:02:10]} 16. Ne5 {[%clk 0:02:08]}  c6 {[%clk 0:01:59]} 17. a3 {[%clk 0:01:45]}  Nd7 {[%clk 0:01:51]} 18. Bxe7 {[%clk 0:01:44]}  Rxe7 {[%clk 0:01:47]} 19. Nxd7 {[%clk 0:01:42]}  Rxd7 {[%clk 0:01:44]} 20. Na4 {[%clk 0:01:41]}  h5 {[%clk 0:01:37]} 21. Nc5 {[%clk 0:01:38]}  Nxc5 {[%clk 0:01:37]} 22. Qxc5 {[%clk 0:01:37]}  h4 {[%clk 0:01:37]} 23. h3 {[%clk 0:01:29]}  Rd6 {[%clk 0:01:37]} 24. Qc2 {[%clk 0:01:17]}  Rg6 {[%clk 0:01:37]} 25. Qf5 {[%clk 0:01:15]}  Rc7 {[%clk 0:01:31]} 26. b4 {[%clk 0:01:06]}  Re7 {[%clk 0:01:30]} 27. a4 {[%clk 0:01:00]}  Ree6 {[%clk 0:01:28]} 28. b5 {[%clk 0:00:58]}  Ref6 {[%clk 0:01:12]} 29. Qe5 {[%clk 0:00:53]}  axb5 {[%clk 0:01:12]} 30. axb5 {[%clk 0:00:53]}  Qd7 {[%clk 0:01:07]} 31. Kf1 {[%clk 0:00:13]}  Rf5 {[%clk 0:01:03]} 32. Qb8+ {[%clk 0:00:12]}  Kh7 {[%clk 0:01:03]} 33. bxc6 {[%clk 0:00:12]}  bxc6 {[%clk 0:01:04]} 34. Rb1 {[%clk 0:00:09]}  Rfg5 {[%clk 0:00:50]} 35. Qf4 {[%clk 0:00:04]}  Rxg2 {[%clk 0:00:39]} 36. Qxh4+ {[%clk 0:00:05]}  Rh6 {[%clk 0:00:39]} 37. Qxh6+ {[%clk 0:00:05]}  Kxh6 {[%clk 0:00:40]} 38. Kxg2 {[%clk 0:00:05]}  Qf5 {[%clk 0:00:40]} 39. Rb6 {[%clk 0:00:04]}  Qe4+ {[%clk 0:00:38]} 40. Kf1 {[%clk 0:00:04]}  Qf3 {[%clk 0:00:25]} 41. Re1 {[%clk 0:00:02]}  Qxh3+ {[%clk 0:00:24]} 42. Ke2 {[%clk 0:00:03]}  Qg4+ {[%clk 0:00:21]} 43. Kd2 {[%clk 0:00:04]}  Qe6 {[%clk 0:00:20]} 44. Rh1+ {[%clk 0:00:04]}  Kg5 {[%clk 0:00:17]} 45. Rg1+ {[%clk 0:00:05]}  Kf6 {[%clk 0:00:17]} 46. Rbb1 {[%clk 0:00:05]}  g5 {[%clk 0:00:16]} 47. Rbc1 {[%clk 0:00:05]}  Qd6 {[%clk 0:00:15]} 48. Rc5 {[%clk 0:00:05]}  Kf5 {[%clk 0:00:13]} 49. Rgc1 {[%clk 0:00:04]}  f6 {[%clk 0:00:11]} 50. Rxc6 {[%clk 0:00:04]}  Qb4+ {[%clk 0:00:11]} 51. Ke2 {[%clk 0:00:05]}  Qb5+ {[%clk 0:00:10]} 52. Ke1 {[%clk 0:00:04]}  Kg4 {[%clk 0:00:06]} 53. R6c5 {[%clk 0:00:04]}  Qb4+ {[%clk 0:00:04]} 54. Kf1 {[%clk 0:00:05]}  f5 {[%clk 0:00:03]} 55. Rxd5 {[%clk 0:00:05]}  Qd2 {[%clk 0:00:04]} 56. Rdc5 {[%clk 0:00:05]}  f4 {[%clk 0:00:04]} 57. R5c3 {[%clk 0:00:03]}  f3 {[%clk 0:00:03]} 58. e4 {[%clk 0:00:03]}  Qe2+ {[%clk 0:00:03]} 59. Kg1 {[%clk 0:00:04]}  Qxe4 {[%clk 0:00:02]} 60. Rd1 {[%clk 0:00:04]}  Qd5 {[%clk 0:00:02]} 61. Rdd3 {[%clk 0:00:04]}  Kf4 {[%clk 0:00:02]} 62. Re3 {[%clk 0:00:04]}  g4 {[%clk 0:00:02]} 63. Rcd3 {[%clk 0:00:04]}  Qc4 {[%clk 0:00:02]} 64. Kh2 {[%clk 0:00:04]}  Qc2 {[%clk 0:00:03]} 65. Kg1 {[%clk 0:00:03]}  Qc1+ {[%clk 0:00:03]} 66. Kh2 {[%clk 0:00:03]}  Qf1 {[%clk 0:00:03]} 67. Rd2 {[%clk 0:00:03]}  Qh3+ {[%clk 0:00:03]} 68. Kg1 {[%clk 0:00:02]}  Qg2# {[%clk 0:00:04]} 0-1


[Site "https://www.chess.com"]

[Event "Titled Tuesday Blitz October 18 Late 2022"]
[White "Winterberg, Lukas"]
[Black "Rose, Felix"]
[WhiteFideId "24622702"]
[BlackFideId "5105722"]
[WhiteElo "2349"]
[BlackElo "2039"]
[Result "0-1"]
[Round "06"]
[TimeControl "180+1"]
[Date "2022.10.19"]
[WhiteClock "0:00:05"]
[BlackClock "0:00:18"]

1. d4 {[%clk 0:03:00]}  d5 {[%clk 0:02:58]} 2. Nf3 {[%clk 0:03:00]}  Nf6 {[%clk 0:02:59]} 3. c4 {[%clk 0:02:59]}  e6 {[%clk 0:02:58]} 4. Nc3 {[%clk 0:02:59]}  c6 {[%clk 0:02:59]} 5. e3 {[%clk 0:02:58]}  Nbd7 {[%clk 0:02:58]} 6. Qc2 {[%clk 0:02:58]}  Bd6 {[%clk 0:02:57]} 7. Bd3 {[%clk 0:02:59]}  dxc4 {[%clk 0:02:52]} 8. Bxc4 {[%clk 0:03:00]}  b5 {[%clk 0:02:53]} 9. Be2 {[%clk 0:02:59]}  Bb7 {[%clk 0:02:50]} 10. O-O {[%clk 0:02:58]}  a6 {[%clk 0:02:50]} 11. e4 {[%clk 0:02:57]}  c5 {[%clk 0:02:49]} 12. dxc5 {[%clk 0:02:21]}  Bxc5 {[%clk 0:02:45]} 13. e5 {[%clk 0:02:10]}  Nd5 {[%clk 0:02:34]} 14. Bg5 {[%clk 0:01:47]}  Qb6 {[%clk 0:02:26]} 15. a4 {[%clk 0:01:26]}  b4 {[%clk 0:02:21]} 16. Ne4 {[%clk 0:01:12]}  Rc8 {[%clk 0:02:15]} 17. Nxc5 {[%clk 0:01:00]}  Rxc5 {[%clk 0:02:13]} 18. Qd2 {[%clk 0:00:59]}  h6 {[%clk 0:02:09]} 19. Be3 {[%clk 0:00:56]}  Nxe3 {[%clk 0:02:09]} 20. Qxe3 {[%clk 0:00:57]}  Bxf3 {[%clk 0:01:58]} 21. Bxf3 {[%clk 0:00:46]}  Rxe5 {[%clk 0:01:46]} 22. Qd2 {[%clk 0:00:29]}  Nc5 {[%clk 0:01:37]} 23. a5 {[%clk 0:00:25]}  Qb8 {[%clk 0:01:28]} 24. Bc6+ {[%clk 0:00:21]}  Ke7 {[%clk 0:01:27]} 25. Rad1 {[%clk 0:00:18]}  Rd8 {[%clk 0:01:26]} 26. Qc2 {[%clk 0:00:15]}  Qc7 {[%clk 0:01:11]} 27. Bf3 {[%clk 0:00:14]}  Qxa5 {[%clk 0:01:05]} 28. Qh7 {[%clk 0:00:10]}  Kf6 {[%clk 0:00:53]} 29. Qc2 {[%clk 0:00:05]}  b3 {[%clk 0:00:52]} 30. Qc1 {[%clk 0:00:03]}  Rxd1 {[%clk 0:00:35]} 31. Rxd1 {[%clk 0:00:03]}  Nd3 {[%clk 0:00:26]} 32. Qb1 {[%clk 0:00:01]}  Re1+ {[%clk 0:00:26]} 33. Rxe1 {[%clk 0:00:01]}  Qxe1+ {[%clk 0:00:25]} 34. Qxe1 {[%clk 0:00:02]}  Nxe1 {[%clk 0:00:25]} 35. Bd1 {[%clk 0:00:02]}  Nd3 {[%clk 0:00:23]} 36. Bxb3 {[%clk 0:00:03]}  Nxb2 {[%clk 0:00:23]} 37. Kf1 {[%clk 0:00:04]}  a5 {[%clk 0:00:23]} 38. Ke2 {[%clk 0:00:04]}  Ke5 {[%clk 0:00:24]} 39. Ba2 {[%clk 0:00:05]}  Kd4 {[%clk 0:00:24]} 40. Kd2 {[%clk 0:00:06]}  Nc4+ {[%clk 0:00:23]} 41. Kc2 {[%clk 0:00:06]}  e5 {[%clk 0:00:23]} 42. Kb3 {[%clk 0:00:05]}  f5 {[%clk 0:00:22]} 43. Ka4 {[%clk 0:00:05]}  e4 {[%clk 0:00:22]} 44. Kb5 {[%clk 0:00:06]}  Nd2 {[%clk 0:00:17]} 45. Kxa5 {[%clk 0:00:05]}  f4 {[%clk 0:00:17]} 46. Kb4 {[%clk 0:00:05]}  e3 {[%clk 0:00:18]} 47. fxe3+ {[%clk 0:00:05]}  fxe3 {[%clk 0:00:18]} 0-1


[Site "https://www.chess.com"]

[Event "Titled Tuesday Blitz October 18 Late 2022"]
[White "Yanchenko, Roman"]
[Black "De La Colina, Nicolas"]
[WhiteFideId "4137329"]
[BlackFideId "30946921"]
[WhiteElo "2514"]
[BlackElo "2046"]
[Result "0-1"]
[Round "06"]
[TimeControl "180+1"]
[Date "2022.10.18"]
[WhiteClock "0:00:17"]
[BlackClock "0:00:17"]

1. d4 {[%clk 0:03:00]}  g6 {[%clk 0:02:48]} 2. Nf3 {[%clk 0:03:00]}  Bg7 {[%clk 0:02:48]} 3. c4 {[%clk 0:03:00]}  f5 {[%clk 0:02:48]} 4. Nc3 {[%clk 0:03:01]}  Nf6 {[%clk 0:02:48]} 5. g3 {[%clk 0:03:01]}  O-O {[%clk 0:02:48]} 6. Bg2 {[%clk 0:03:01]}  d6 {[%clk 0:02:49]} 7. d5 {[%clk 0:03:01]}  c6 {[%clk 0:02:49]} 8. O-O {[%clk 0:03:01]}  e5 {[%clk 0:02:49]} 9. dxe6 {[%clk 0:03:01]}  Bxe6 {[%clk 0:02:49]} 10. Qd3 {[%clk 0:03:00]}  Na6 {[%clk 0:02:45]} 11. Ng5 {[%clk 0:03:00]}  Bc8 {[%clk 0:02:34]} 12. Rd1 {[%clk 0:02:59]}  Ne8 {[%clk 0:02:30]} 13. c5 {[%clk 0:02:33]}  d5 {[%clk 0:01:25]} 14. Nxd5 {[%clk 0:02:29]}  cxd5 {[%clk 0:01:19]} 15. Bxd5+ {[%clk 0:02:29]}  Kh8 {[%clk 0:01:19]} 16. Qc2 {[%clk 0:01:23]}  Qe7 {[%clk 0:00:58]} 17. Bf4 {[%clk 0:01:13]}  Nb4 {[%clk 0:00:49]} 18. Qc4 {[%clk 0:01:07]}  Nxd5 {[%clk 0:00:47]} 19. Qxd5 {[%clk 0:01:08]}  Nf6 {[%clk 0:00:40]} 20. Qd6 {[%clk 0:01:03]}  Qxd6 {[%clk 0:00:33]} 21. Bxd6 {[%clk 0:01:04]}  Re8 {[%clk 0:00:32]} 22. e3 {[%clk 0:01:00]}  Kg8 {[%clk 0:00:29]} 23. Nf3 {[%clk 0:00:55]}  Bd7 {[%clk 0:00:25]} 24. Ne5 {[%clk 0:00:50]}  Rac8 {[%clk 0:00:24]} 25. f4 {[%clk 0:00:46]}  Be6 {[%clk 0:00:23]} 26. b4 {[%clk 0:00:44]}  Ng4 {[%clk 0:00:14]} 27. a4 {[%clk 0:00:17]}  Nxe5 {[%clk 0:00:13]} 28. fxe5 {[%clk 0:00:18]}  Bf7 {[%clk 0:00:10]} 29. Kf2 {[%clk 0:00:16]}  Bxe5 {[%clk 0:00:10]} 30. Bxe5 {[%clk 0:00:17]}  Rxe5 {[%clk 0:00:11]} 31. Rd7 {[%clk 0:00:17]}  Bd5 {[%clk 0:00:09]} 32. Rd1 {[%clk 0:00:16]}  Be4 {[%clk 0:00:07]} 33. R1d6 {[%clk 0:00:14]}  a6 {[%clk 0:00:06]} 34. h4 {[%clk 0:00:14]}  a5 {[%clk 0:00:05]} 35. bxa5 {[%clk 0:00:10]}  Rexc5 {[%clk 0:00:05]} 36. a6 {[%clk 0:00:08]}  Rc2+ {[%clk 0:00:06]} 37. Ke1 {[%clk 0:00:06]}  Rc1+ {[%clk 0:00:06]} 38. Kf2 {[%clk 0:00:07]}  R8c2+ {[%clk 0:00:05]} 39. Rd2 {[%clk 0:00:07]}  Rxd2+ {[%clk 0:00:06]} 40. Rxd2 {[%clk 0:00:07]}  bxa6 {[%clk 0:00:06]} 41. g4 {[%clk 0:00:08]}  Rc2 {[%clk 0:00:06]} 42. Rxc2 {[%clk 0:00:08]}  Bxc2 {[%clk 0:00:07]} 43. gxf5 {[%clk 0:00:08]}  Bxf5 {[%clk 0:00:08]} 44. a5 {[%clk 0:00:08]}  Bd7 {[%clk 0:00:08]} 45. Kf3 {[%clk 0:00:08]}  Kf7 {[%clk 0:00:08]} 46. Ke4 {[%clk 0:00:09]}  Ke6 {[%clk 0:00:09]} 47. Kf4 {[%clk 0:00:09]}  Bb5 {[%clk 0:00:10]} 48. Kg5 {[%clk 0:00:09]}  Kf7 {[%clk 0:00:10]} 49. Kh6 {[%clk 0:00:10]}  Kg8 {[%clk 0:00:10]} 50. e4 {[%clk 0:00:10]}  Be8 {[%clk 0:00:10]} 51. Kg5 {[%clk 0:00:10]}  Kg7 {[%clk 0:00:10]} 52. Kf4 {[%clk 0:00:11]}  Kf6 {[%clk 0:00:10]} 53. e5+ {[%clk 0:00:11]}  Ke6 {[%clk 0:00:10]} 54. Ke4 {[%clk 0:00:11]}  Bb5 {[%clk 0:00:11]} 55. Kf4 {[%clk 0:00:11]}  h6 {[%clk 0:00:11]} 56. Ke4 {[%clk 0:00:12]}  Bc6+ {[%clk 0:00:11]} 57. Kf4 {[%clk 0:00:12]}  Bd5 {[%clk 0:00:11]} 58. Kg4 {[%clk 0:00:12]}  Kxe5 {[%clk 0:00:12]} 59. Kg3 {[%clk 0:00:12]}  Kf5 {[%clk 0:00:12]} 60. h5 {[%clk 0:00:13]}  g5 {[%clk 0:00:11]} 61. Kh3 {[%clk 0:00:13]}  Bc4 {[%clk 0:00:11]} 62. Kg3 {[%clk 0:00:13]}  Bb5 {[%clk 0:00:12]} 63. Kh3 {[%clk 0:00:14]}  Kf4 {[%clk 0:00:13]} 64. Kh2 {[%clk 0:00:14]}  Kg4 {[%clk 0:00:14]} 65. Kg2 {[%clk 0:00:15]}  Kxh5 {[%clk 0:00:15]} 66. Kg3 {[%clk 0:00:15]}  Kg6 {[%clk 0:00:16]} 67. Kg4 {[%clk 0:00:16]}  h5+ {[%clk 0:00:17]} 68. Kh3 {[%clk 0:00:17]} 0-1


[Site "https://www.chess.com"]

[Event "Titled Tuesday Blitz October 18 Late 2022"]
[White "Yano, William Jorge Froes"]
[Black "Hajiyev, Kanan"]
[WhiteFideId "2112949"]
[BlackFideId "13404148"]
[WhiteElo "2122"]
[BlackElo "2118"]
[Result "0-1"]
[Round "06"]
[TimeControl "180+1"]
[Date "2022.10.19"]
[WhiteClock "0:00:16"]
[BlackClock "0:00:08"]

1. e4 {[%clk 0:03:00]}  c6 {[%clk 0:02:48]} 2. Nc3 {[%clk 0:03:00]}  d5 {[%clk 0:02:49]} 3. Qf3 {[%clk 0:03:00]}  a6 {[%clk 0:02:50]} 4. exd5 {[%clk 0:03:00]}  Nf6 {[%clk 0:02:50]} 5. dxc6 {[%clk 0:02:51]}  Nxc6 {[%clk 0:02:51]} 6. h3 {[%clk 0:02:17]}  Nd4 {[%clk 0:02:48]} 7. Qd1 {[%clk 0:02:17]}  Bf5 {[%clk 0:02:48]} 8. d3 {[%clk 0:02:16]}  e5 {[%clk 0:02:48]} 9. Nf3 {[%clk 0:02:10]}  Bb4 {[%clk 0:02:47]} 10. Be2 {[%clk 0:02:02]}  O-O {[%clk 0:02:41]} 11. O-O {[%clk 0:02:01]}  Re8 {[%clk 0:02:18]} 12. Bg5 {[%clk 0:01:51]}  Rc8 {[%clk 0:02:13]} 13. Nh4 {[%clk 0:01:29]}  h6 {[%clk 0:01:55]} 14. Bxf6 {[%clk 0:01:26]}  gxf6 {[%clk 0:01:49]} 15. Nxf5 {[%clk 0:01:25]}  Nxf5 {[%clk 0:01:48]} 16. Ne4 {[%clk 0:01:25]}  Ng7 {[%clk 0:01:30]} 17. c3 {[%clk 0:01:20]}  Bf8 {[%clk 0:01:22]} 18. Qb3 {[%clk 0:01:18]}  f5 {[%clk 0:01:17]} 19. Ng3 {[%clk 0:01:14]}  Rc7 {[%clk 0:01:07]} 20. Rad1 {[%clk 0:01:13]}  Bc5 {[%clk 0:01:04]} 21. Kh1 {[%clk 0:00:58]}  Ba7 {[%clk 0:01:02]} 22. Bf3 {[%clk 0:00:52]}  Qg5 {[%clk 0:00:53]} 23. Kh2 {[%clk 0:00:36]}  h5 {[%clk 0:00:47]} 24. Qa4 {[%clk 0:00:27]}  h4 {[%clk 0:00:45]} 25. Nh5 {[%clk 0:00:24]}  b5 {[%clk 0:00:35]} 26. Qa5 {[%clk 0:00:20]}  Nxh5 {[%clk 0:00:15]} 27. Qxc7 {[%clk 0:00:17]}  Bb8 {[%clk 0:00:15]} 28. Qc6 {[%clk 0:00:16]}  e4+ {[%clk 0:00:13]} 29. Kg1 {[%clk 0:00:16]}  Re6 {[%clk 0:00:11]} 30. Qc8+ {[%clk 0:00:16]}  Kg7 {[%clk 0:00:10]} 31. dxe4 {[%clk 0:00:16]}  Qf4 {[%clk 0:00:08]} 32. Bxh5 {[%clk 0:00:16]}  Qh2# {[%clk 0:00:08]} 0-1


[Site "https://www.chess.com"]